{"text_format":"1","workbook":"xlsx","n_sheets":2,"sheets":["Identif","Univerzita tretieho veku"],"not_rendered":{"charts":0,"images":0,"macros":0,"external_links":0,"defined_names":7,"comments":0,"pivot_tables":0},"unopened":[],"bounds":{"document_bytes":16777216,"sheet_cells":100000,"rows_first":2000,"rows_last":500,"rows_between":2000,"halvings":0,"cell_chars":16384,"cell_head_chars":4096},"cells_cut":0,"cells_raw":0,"read":"whole","date_system":"1900"}

{"sheet":"Identif","index":0,"n_rows":31,"n_cols":53,"rows_kept":31,"cut":false,"hidden":false,"merged":[[38,1,38,52],[39,1,39,52],[33,1,33,52],[34,1,34,52],[35,1,35,52],[36,1,36,52],[37,1,37,52],[28,0,28,52],[29,0,29,52],[30,0,30,52],[31,1,31,52],[32,1,32,52],[23,32,23,46],[23,48,23,52],[24,32,24,52],[25,32,25,52],[26,0,26,7],[26,8,26,13],[26,32,26,52],[22,32,22,46],[22,48,22,52],[17,1,17,8],[17,9,17,44],[17,45,17,47],[17,48,17,52],[19,10,19,28],[19,32,19,52],[20,1,20,6],[20,10,20,28],[20,32,20,52],[21,10,21,28],[21,32,21,52],[11,1,11,8],[11,9,11,52],[13,1,13,8],[13,9,13,52],[15,1,15,8],[15,9,15,44],[15,45,15,47],[15,48,15,52],[7,26,7,42],[3,32,3,35],[3,36,3,37],[3,38,3,46],[5,32,5,52],[3,47,3,50],[0,32,0,50],[1,32,2,35],[1,36,1,37],[1,38,1,46],[1,47,2,50],[2,36,2,37],[2,38,2,46]]}
[null,null,null,null,null,null,null,null,null,null,null,null,null,null,null,null,null,null,null,null,null,null,null,null,null,null,null,null,null,null,null,null,"Škol (MŠVVŠ SR)  12 - 01",null,null,null,null,null,null,null,null,null,null,null,null,null,null,null,null,null,null,null,"AT"]
[null,null,null,null,null,null,null,null,null,null,null,null,null,null,null,null,null,null,null,null,null,null,null,null,null,null,null,null,null,null,null,null,"Rok",null,null,null,"Mes",null,"Identifikačné",null,null,null,null,null,null,null,null,"Fakulta"]
[null,null,null,null,null,null,null,null,null,null,null,null,null,null,null,null,null,null,null,null,null,null,null,null,null,null,null,null,null,null,null,null,null,null,null,null,"iac",null,"číslo organizácie"]
[null,null,null,null,null,null,null,null,null,null,null,null,null,null,null,null,null,null,null,null,null,null,null,null,null,null,null,null,null,null,null,null,"2023",null,null,null,"12"]
[]
[null,null,null,null,null,null,null,null,null,null,null,null,null,null,null,null,null,null,null,null,null,null,null,null,null,null,null,null,null,null,null,null,"Zber údajov podľa stavu: k 31. 12. 2023"]
[]
[null,null,null,null,null,null,null,null,null,null,null,null,null,null,null,null,null,null,null,null,null,null,null,null,null,null,"Univerzita tretieho veku"]
[]
[]
[]
[null,"Vysoká škola"]
[]
[null,"Fakulta"]
[]
[null,"Miesto",null,null,null,null,null,null,null,null,null,null,null,null,null,null,null,null,null,null,null,null,null,null,null,null,null,null,null,null,null,null,null,null,null,null,null,null,null,null,null,null,null,null,null,"PSČ"]
[]
[null,"Ulica",null,null,null,null,null,null,null,null,null,null,null,null,null,null,null,null,null,null,null,null,null,null,null,null,null,null,null,null,null,null,null,null,null,null,null,null,null,null,null,null,null,null,null,"č.p."]
[]
[null,null,null,null,null,null,null,null,null,null,"Podpis vedúceho",null,null,null,null,null,null,null,null,null,null,null,null,null,null,null,null,null,null,null,null,null,"Výkaz zostavil"]
[null,"Pečiatka",null,null,null,null,null,null,null,null,"spravodajskej jednotky"]
[]
[null,null,null,null,null,null,null,null,null,null,null,null,null,null,null,null,null,null,null,null,null,null,null,null,null,null,null,null,null,null,null,null,"Telefón",null,null,null,null,null,null,null,null,null,null,null,null,null,null,null,"Klapka"]
[]
[null,null,null,null,null,null,null,null,null,null,null,null,null,null,null,null,null,null,null,null,null,null,null,null,null,null,null,null,null,null,null,null,"E-mail"]
[]
["Odoslané dňa"]
[]
["Polia oranžovej farby musia byť povinne vyplnené (identifikačná časť) alebo označujú nepríspustnú chybu"]
["(údajová časť). Po vyplnení nesmie na formulári byť oranžové pole. Formulár s oranžovým poľom je chybný."]
["Komentár k výkazu (vyplníte povinne, ak na formulári ostalo žlté pole - možná chyba)"]

{"sheet":"Univerzita tretieho veku","index":1,"n_rows":101,"n_cols":9,"rows_kept":101,"cut":false,"hidden":false,"merged":[[0,6,0,8],[0,0,0,3],[66,0,66,3],[67,0,67,3],[58,0,58,3],[59,0,59,3],[60,0,60,3],[61,0,61,3],[54,0,54,3],[55,0,55,3],[42,0,42,3],[43,0,43,3],[44,0,44,3],[45,0,45,3],[46,0,46,3],[47,0,47,3],[36,0,36,3],[37,0,37,3],[38,0,38,3],[39,0,39,3],[40,0,40,3],[41,0,41,3],[30,0,30,3],[31,0,31,3],[68,0,68,3],[69,0,69,3],[62,0,62,3],[63,0,63,3],[64,0,64,3],[65,0,65,3],[48,0,48,3],[49,0,49,3],[56,0,56,3],[57,0,57,3],[50,0,50,3],[51,0,51,3],[52,0,52,3],[53,0,53,3],[32,0,32,3],[33,0,33,3],[34,0,34,3],[35,0,35,3],[24,0,24,3],[25,0,25,3],[26,0,26,3],[27,0,27,3],[28,0,28,3],[29,0,29,3],[18,0,18,3],[19,0,19,3],[20,0,20,3],[21,0,21,3],[22,0,22,3],[23,0,23,3],[12,0,12,3],[13,0,13,3],[14,0,14,3],[15,0,15,3],[16,0,16,3],[17,0,17,3],[7,0,7,3],[8,0,8,3],[9,0,9,3],[6,0,6,3],[10,0,10,3],[11,0,11,3],[2,6,2,8],[1,0,1,5],[2,4,2,5],[3,4,3,5],[2,0,4,3],[5,0,5,3],[74,0,74,3],[75,0,75,3],[76,0,76,3],[77,0,77,3],[70,0,70,3],[71,0,71,3],[72,0,72,3],[73,0,73,3],[82,0,82,3],[83,0,83,3],[84,0,84,3],[85,0,85,3],[78,0,78,3],[79,0,79,3],[80,0,80,3],[81,0,81,3],[90,0,90,3],[91,0,91,3],[92,0,92,3],[93,0,93,3],[86,0,86,3],[87,0,87,3],[88,0,88,3],[89,0,89,3],[98,0,98,3],[99,0,99,3],[100,0,100,3],[94,0,94,3],[95,0,95,3],[96,0,96,3],[97,0,97,3]]}
["I. Absolventi za kalendárny rok",null,null,null,"Fakulta",{"$f":"Identif!AV4","v":0}]
["UNIVERZITA TRETIEHO VEKU"]
["Názov programu štúdia",null,null,null,"Absolventi",null,"Výpis chýb v jednotlivých riadkoch"]
[null,null,null,null,"Univerzity 3. veku",null,"Nevyplnený odbor alebo nulové údaje"]
[null,null,null,null,"spolu","ženy","ŽENY viac ako je absolventov spolu"]
["celkom",null,null,null,{"$f":"SUM(E7:E101)","v":0},{"$f":"SUM(F7:F101)","v":0}]
[null,null,null,null,null,null,{"$f":"IF(A7=0,IF(E7>0,\"nevyplnený odbor\",\" \"),\" \")","v":" "},{"$f":"IF(A7>0,IF(E7=0,\"nulové údaje\",\" \"),\" \")","v":" "},{"$f":"IF(E7<F7,\"ŽENY\",\" \")","v":" "}]
[null,null,null,null,null,null,{"$f":"IF(A8=0,IF(E8>0,\"nevyplnený odbor\",\" \"),\" \")","v":" "},{"$f":"IF(A8>0,IF(E8=0,\"nulové údaje\",\" \"),\" \")","v":" "},{"$f":"IF(E8<F8,\"ŽENY\",\" \")","v":" "}]
[null,null,null,null,null,null,{"$f":"IF(A9=0,IF(E9>0,\"nevyplnený odbor\",\" \"),\" \")","v":" "},{"$f":"IF(A9>0,IF(E9=0,\"nulové údaje\",\" \"),\" \")","v":" "},{"$f":"IF(E9<F9,\"ŽENY\",\" \")","v":" "}]
[null,null,null,null,null,null,{"$f":"IF(A10=0,IF(E10>0,\"nevyplnený odbor\",\" \"),\" \")","v":" "},{"$f":"IF(A10>0,IF(E10=0,\"nulové údaje\",\" \"),\" \")","v":" "},{"$f":"IF(E10<F10,\"ŽENY\",\" \")","v":" "}]
[null,null,null,null,null,null," "," "," "]
[null,null,null,null,null,null," "," "," "]
[null,null,null,null,null,null," "," "," "]
[null,null,null,null,null,null," "," "," "]
[null,null,null,null,null,null," "," "," "]
[null,null,null,null,null,null," "," "," "]
[null,null,null,null,null,null," "," "," "]
[null,null,null,null,null,null," "," "," "]
[null,null,null,null,null,null," "," "," "]
[null,null,null,null,null,null," "," "," "]
[null,null,null,null,null,null," "," "," "]
[null,null,null,null,null,null," "," "," "]
[null,null,null,null,null,null," "," "," "]
[null,null,null,null,null,null," "," "," "]
[null,null,null,null,null,null," "," "," "]
[null,null,null,null,null,null," "," "," "]
[null,null,null,null,null,null," "," "," "]
[null,null,null,null,null,null," "," "," "]
[null,null,null,null,null,null," "," "," "]
[null,null,null,null,null,null," "," "," "]
[null,null,null,null,null,null," "," "," "]
[null,null,null,null,null,null," "," "," "]
[null,null,null,null,null,null," "," "," "]
[null,null,null,null,null,null," "," "," "]
[null,null,null,null,null,null," "," "," "]
[null,null,null,null,null,null," "," "," "]
[null,null,null,null,null,null," "," "," "]
[null,null,null,null,null,null," "," "," "]
[null,null,null,null,null,null," "," "," "]
[null,null,null,null,null,null," "," "," "]
[null,null,null,null,null,null," "," "," "]
[null,null,null,null,null,null," "," "," "]
[null,null,null,null,null,null," "," "," "]
[null,null,null,null,null,null," "," "," "]
[null,null,null,null,null,null," "," "," "]
[null,null,null,null,null,null," "," "," "]
[null,null,null,null,null,null," "," "," "]
[null,null,null,null,null,null," "," "," "]
[null,null,null,null,null,null," "," "," "]
[null,null,null,null,null,null," "," "," "]
[null,null,null,null,null,null," "," "," "]
[null,null,null,null,null,null," "," "," "]
[null,null,null,null,null,null," "," "," "]
[null,null,null,null,null,null," "," "," "]
[null,null,null,null,null,null," "," "," "]
[null,null,null,null,null,null," "," "," "]
[null,null,null,null,null,null," "," "," "]
[null,null,null,null,null,null," "," "," "]
[null,null,null,null,null,null," "," "," "]
[null,null,null,null,null,null," "," "," "]
[null,null,null,null,null,null," "," "," "]
[null,null,null,null,null,null," "," "," "]
[null,null,null,null,null,null," "," "," "]
[null,null,null,null,null,null," "," "," "]
[null,null,null,null,null,null," "," "," "]
[null,null,null,null,null,null," "," "," "]
[null,null,null,null,null,null," "," "," "]
[null,null,null,null,null,null," "," "," "]
[null,null,null,null,null,null," "," "," "]
[null,null,null,null,null,null," "," "," "]
[null,null,null,null,null,null," "," "," "]
[null,null,null,null,null,null," "," "," "]
[null,null,null,null,null,null," "," "," "]
[null,null,null,null,null,null,{"$f":"IF(A74=0,IF(E74>0,\"nevyplnený odbor\",\" \"),\" \")","v":" "},{"$f":"IF(A74>0,IF(E74=0,\"nulové údaje\",\" \"),\" \")","v":" "},{"$f":"IF(E74<F74,\"ŽENY\",\" \")","v":" "}]
[null,null,null,null,null,null," "," "," "]
[null,null,null,null,null,null," "," "," "]
[null,null,null,null,null,null," "," "," "]
[null,null,null,null,null,null," "," "," "]
[null,null,null,null,null,null," "," "," "]
[null,null,null,null,null,null," "," "," "]
[null,null,null,null,null,null," "," "," "]
[null,null,null,null,null,null," "," "," "]
[null,null,null,null,null,null," "," "," "]
[null,null,null,null,null,null," "," "," "]
[null,null,null,null,null,null," "," "," "]
[null,null,null,null,null,null," "," "," "]
[null,null,null,null,null,null," "," "," "]
[null,null,null,null,null,null," "," "," "]
[null,null,null,null,null,null," "," "," "]
[null,null,null,null,null,null," "," "," "]
[null,null,null,null,null,null," "," "," "]
[null,null,null,null,null,null," "," "," "]
[null,null,null,null,null,null," "," "," "]
[null,null,null,null,null,null," "," "," "]
[null,null,null,null,null,null," "," "," "]
[null,null,null,null,null,null," "," "," "]
[null,null,null,null,null,null," "," "," "]
[null,null,null,null,null,null," "," "," "]
[null,null,null,null,null,null," "," "," "]
[null,null,null,null,null,null," "," "," "]
[null,null,null,null,null,null," "," "," "]